fUST/lending_fUST_20260701
["ID","MTS","AMOUNT","RATE_DAILY","PERIOD"]
[426815818,1782878765000,-151.0,0.0002079,2]
[426815820,1782878776000,26800.0,0.00029225,30]
[426815821,1782878818000,-286.77,0.0002079,2]
[426815826,1782878968000,-5000.0,0.00019965,2]
[426815828,1782878968000,-500.0,0.00020789,2]
[426815830,1782878968000,-500.0,0.00020789,2]
[426815829,1782878968000,-500.0,0.00020789,2]
[426815827,1782878968000,-151.0,0.00020166,2]
[426815831,1782878968000,-500.0,0.00020789,2]
[426815835,1782878968000,-889.92,0.00020999,2]
[426815834,1782878968000,-504.19662949,0.00020999,2]
[426815832,1782878968000,-307.37370918,0.00020789,2]
[426815836,1782878968000,-500.0,0.00020999,2]
[426815837,1782878968000,-200.75899657,0.00020999,2]
[426815838,1782878968000,-3321.00225134,0.00021,2]
[426815833,1782878968000,-4960.28595942,0.0002079,2]
[426815839,1782879028000,197.0,0.00025723,120]
[426815882,1782879032000,-500.0,0.00020999,2]
[426815878,1782879032000,-500.0,0.00020999,2]
[426815880,1782879032000,-253.38102612,0.00020999,2]
[426815874,1782879032000,-5000.0,0.0002079,2]
[426815870,1782879032000,-500.0,0.00020789,2]
[426815872,1782879032000,-246.18654785,0.00020789,2]
[426815866,1782879032000,-500.0,0.00020789,2]
[426815868,1782879032000,-500.0,0.00020789,2]
[426815864,1782879032000,-151.0,0.00019561,2]
[426815893,1782879032000,-500.0,0.00020999,2]
[426815895,1782879032000,-500.0,0.00020999,2]
[426815876,1782879032000,-540.44399048,0.00020999,2]
[426815899,1782879032000,-2775.07906569,0.00021,2]
[426815904,1782879032000,-1020.50943739,0.00021,2]
[426815903,1782879032000,-5985.26058071,0.00021,2]
[426815901,1782879032000,-1491.19885398,0.00021,2]
[426815891,1782879032000,-172.27681938,0.00020999,2]
[426815884,1782879032000,-500.0,0.00020999,2]
[426815887,1782879032000,-134.50481938,0.00020999,2]
[426815886,1782879032000,-365.49518062,0.00020999,2]
[426815885,1782879032000,-500.0,0.00020999,2]
[426815897,1782879032000,-2746.27586006,0.00021,2]
[426815889,1782879032000,-327.72318062,0.00020999,2]
[426815883,1782879032000,-500.0,0.00020999,2]
[426815881,1782879032000,-246.61897388,0.00020999,2]
[426815963,1782879038000,-502.73236172,0.00028499,2]
[426815949,1782879038000,-971.168833,0.0002637,2]
[426815947,1782879038000,-587.5786893,0.00026218,2]
[426815946,1782879038000,-1540.4,0.000261,5]
[426815950,1782879038000,-287.37395052,0.00026708,2]
[426815948,1782879038000,-495.19024097,0.0002627,2]
[426815944,1782879038000,-500.0,0.00026018,2]
[426815945,1782879038000,-1540.405,0.000261,5]
[426815942,1782879038000,-506.26503247,0.00025933,2]
[426815951,1782879038000,-1044.58433653,0.00026933,2]
[426815953,1782879038000,-1630.53086281,0.00027647,2]
[426815943,1782879038000,-889.92,0.00026018,2]
[426815939,1782879038000,-1755.38377831,0.00023773,2]
[426815936,1782879038000,-257.19073909,0.0002079,2]
[426815938,1782879038000,-7702.19703582,0.00023673,2]
[426815935,1782879038000,-400.70926091,0.0002079,2]
[426815937,1782879038000,-9522.32290664,0.00021,2]
[426815940,1782879038000,-251.95870739,0.00025149,2]
[426815954,1782879038000,-328.09894465,0.00027663,2]
[426815941,1782879038000,-326.43260517,0.00025504,2]
[426815955,1782879038000,-159.228979,0.00027861,2]
[426815972,1782879038000,-218.87129087,0.00029225,2]
[426815952,1782879038000,-495.19024096,0.00027212,2]
[426815971,1782879038000,-495.19024096,0.00029095,2]
[426815973,1782879038000,-179.8467,0.000296,3]
[426815970,1782879038000,-580.0,0.00029,2]
[426815968,1782879038000,-190.545,0.00028951,2]
[426815966,1782879038000,-1503.885452,0.00028883,2]
[426815965,1782879038000,-740.07944439,0.000285,2]
[426815969,1782879038000,-446.0,0.00028951,2]
[426815974,1782879038000,-862.05620484,0.00029613,2]
[426815964,1782879038000,-36864.78685782,0.000285,2]
[426815961,1782879038000,-889.92,0.00028499,2]
[426815962,1782879038000,-889.92,0.00028499,2]
[426815959,1782879038000,-495.19024096,0.00028154,2]
[426815960,1782879038000,-1268.46981031,0.00028443,2]
[426815958,1782879038000,-580.0,0.00028,2]
[426815967,1782879038000,-1422.0,0.00028951,2]
[426815957,1782879038000,-2289.9990761,0.00027976,2]
[426815956,1782879038000,-179.7933,0.000279,3]
[426816008,1782879039000,-598.05939059,0.00029863,7]
[426815990,1782879039000,-3000.0,0.0002981,2]
[426815989,1782879039000,-173.29739931,0.000298,2]
[426815988,1782879039000,-3000.0,0.000298,2]
[426815991,1782879039000,-3000.0,0.0002982,2]
[426815995,1782879039000,-1000.0,0.00029829,2]
[426816005,1782879039000,-531.4849617,0.00029863,7]
[426816004,1782879039000,-500.0,0.00029863,7]
[426816007,1782879039000,-307.87,0.00029863,5]
[426816006,1782879039000,-151.6136981,0.00029863,7]
[426815993,1782879039000,-1000.0,0.00029829,2]
[426815992,1782879039000,-889.92,0.00029829,2]
[426815996,1782879039000,-1000.0,0.00029829,2]
[426815979,1782879039000,-500.0,0.00029725,2]
[426815987,1782879039000,-163.735072,0.0002973,10]
[426815986,1782879039000,-197.97671456,0.00029725,2]
[426815983,1782879039000,-151.5,0.00029725,2]
[426815982,1782879039000,-500.0,0.00029725,2]
[426815984,1782879039000,-208.41877767,0.00029725,2]
[426815981,1782879039000,-151.5,0.00029725,2]
[426815980,1782879039000,-500.0,0.00029725,2]
[426815978,1782879039000,-499.73506746,0.000297,2]
[426815976,1782879039000,-170.0,0.00029619,2]
[426815977,1782879039000,-1542.27064569,0.0002963,2]
[426815985,1782879039000,-500.0,0.00029725,2]
[426815975,1782879039000,-900.0,0.00029619,2]
[426815997,1782879039000,-1000.0,0.00029829,2]
[426815994,1782879039000,-1000.0,0.00029829,2]
[426815998,1782879039000,-5519.927068,0.0002983,2]
[426816015,1782879039000,-151.0,0.00029897,7]
[426816002,1782879039000,-500.0,0.00029863,7]
[426815999,1782879039000,-1854.667,0.00029858,2]
[426816033,1782879039000,-500.0,0.00029999,7]
[426816032,1782879039000,-500.0,0.00029999,7]
[426816030,1782879039000,-500.0,0.00029999,7]
[426816028,1782879039000,-1000.0,0.00029998,2]
[426816029,1782879039000,-500.0,0.00029999,7]
[426816027,1782879039000,-151.0,0.00029998,7]
[426816025,1782879039000,-178.69541,0.00029998,7]
[426816026,1782879039000,-152.56178,0.00029998,7]
[426816023,1782879039000,-335.11,0.00029998,3]
[426816022,1782879039000,-500.0,0.00029998,7]
[426816024,1782879039000,-169.151872,0.00029998,7]
[426816020,1782879039000,-500.0,0.00029998,7]
[426816031,1782879039000,-500.0,0.00029999,7]
[426816034,1782879039000,-433.31850144,0.00029999,7]
[426816018,1782879039000,-697.28,0.00029989,3]
[426816021,1782879039000,-889.92,0.00029998,2]
[426816001,1782879039000,-500.0,0.00029863,7]
[426816003,1782879039000,-517.69993835,0.00029863,7]
[426816000,1782879039000,-500.0,0.00029863,7]
[426816010,1782879039000,-900.0,0.00029897,2]
[426816016,1782879039000,-464.83,0.00029989,3]
[426816009,1782879039000,-185.917659,0.00029863,7]
[426816014,1782879039000,-151.398619,0.00029897,7]
[426816019,1782879039000,-500.0,0.00029998,7]
[426816011,1782879039000,-180.0,0.00029897,2]
[426816017,1782879039000,-232.41,0.00029989,3]
[426816012,1782879039000,-151.11948,0.00029897,7]
[426816013,1782879039000,-156.786632,0.00029897,7]
[426816039,1782879041000,-512.15924344,0.00029999,7]
[426816040,1782879041000,-321.63680566,0.00029999,7]
[426816038,1782879041000,-66.68149856,0.00029999,7]
[426816065,1782879046000,-907.396211,0.000291,2]
[426816064,1782879046000,-1101.7586,0.000286,2]
[426816068,1782879146000,10000.0,0.00030135,30]
[426816070,1782879210000,12000.0,0.00030136,30]
[426816071,1782879263000,20000.0,0.00030136,30]
[426816072,1782879324000,11600.0,0.00030136,30]
[426816078,1782879657000,2275.4432449,0.00028061,120]
[426816081,1782879997000,-327.5731386,0.000198,2]
[426816088,1782880232000,-3153.0,0.000198,2]
[426816109,1782880239000,-500.0,0.00026217,2]
[426816106,1782880239000,-649.1310761,0.00026216,2]
[426816105,1782880239000,-293.80002036,0.000261,3]
[426816111,1782880239000,-553.0,0.00028,2]
[426816110,1782880239000,-211.06378271,0.000266,2]
[426816107,1782880239000,-500.0,0.00026216,2]
[426816113,1782880239000,-4743.31312051,0.00028225,2]
[426816104,1782880239000,-293.4501,0.000261,3]
[426816108,1782880239000,-357.74797694,0.00026216,2]
[426816102,1782880239000,-2602.0,0.0002,2]
[426816101,1782880239000,-1216.93289421,0.000198,2]
[426816112,1782880239000,-485.584416,0.00028195,2]
[426816103,1782880239000,-500.0,0.00020999,2]
[426816124,1782880244000,-36.3970154,0.00028225,2]
[426816199,1782881386000,-1305.93801377,0.0002,5]
[426816200,1782881387000,-4150.52979795,0.0002,5]
[426816240,1782881432000,-1694.65705742,0.000285,2]
[426816241,1782881432000,-241.02999705,0.000285,2]
[426816211,1782881432000,-1305.9233872,0.000198,2]
[426816210,1782881432000,-5000.0,0.00019602,2]
[426816212,1782881432000,-367.57470496,0.0002,5]
[426816217,1782881432000,-211.06378271,0.000265,2]
[426816213,1782881432000,-171.0,0.00021917,2]
[426816214,1782881432000,-318.8588957,0.00024435,2]
[426816216,1782881432000,-655.1793364,0.00026367,2]
[426816215,1782881432000,-364.04575635,0.00024435,2]
[426816219,1782881432000,-341.97780627,0.00027075,2]
[426816218,1782881432000,-328.77086494,0.00027075,2]
[426816228,1782881432000,-227.58321086,0.00028499,2]
[426816227,1782881432000,-566.0,0.00028,2]
[426816225,1782881432000,-523.590458,0.0002784,2]
[426816223,1782881432000,-175.507814,0.00027701,2]
[426816220,1782881432000,-1094.32898006,0.00027075,2]
[426816235,1782881432000,-500.0,0.00028499,2]
[426816222,1782881432000,-2459.77796493,0.00027075,2]
[426816229,1782881432000,-500.0,0.00028499,2]
[426816226,1782881432000,-211.43676236,0.00027843,2]
[426816230,1782881432000,-500.0,0.00028499,2]
[426816231,1782881432000,-500.0,0.00028499,2]
[426816221,1782881432000,-1709.88903134,0.00027075,2]
[426816232,1782881432000,-500.0,0.00028499,2]
[426816234,1782881432000,-500.0,0.00028499,2]
[426816224,1782881432000,-3635.4348848,0.00027755,2]
[426816236,1782881432000,-500.0,0.00028499,2]
[426816233,1782881432000,-502.08502223,0.00028499,2]
[426816237,1782881432000,-450.0,0.00028499,2]
[426816239,1782881432000,-886.24557937,0.000285,2]
[426816238,1782881432000,-358.81751707,0.000285,2]
[426816242,1782881433000,-6739.42240636,0.00028594,2]
[426816244,1782881433000,-2814.65508931,0.00028694,2]
[426816243,1782881433000,-688.27,0.00028693,2]
[426816245,1782881433000,-228.57,0.00028955,15]
[426816251,1782881433000,-600.0,0.00029496,2]
[426816252,1782881433000,-1033.71522593,0.00029704,2]
[426816248,1782881433000,-160.0,0.00029275,3]
[426816247,1782881433000,-342.85678719,0.00029223,2]
[426816250,1782881433000,-1000.0,0.00029496,2]
[426816249,1782881433000,-181.07,0.00029445,2]
[426816246,1782881433000,-566.0,0.00029,2]
[426816307,1782881443000,-388.28477407,0.00029704,2]
[426816315,1782881443000,-1000.0,0.00029897,2]
[426816320,1782881443000,-503.05444609,0.00029898,7]
[426816319,1782881443000,-511.94441663,0.00029898,2]
[426816324,1782881443000,-200.0,0.0002994,14]
[426816323,1782881443000,-200.0,0.0002994,14]
[426816313,1782881443000,-452.685,0.00029704,2]
[426816322,1782881443000,-500.0,0.00029925,7]
[426816318,1782881443000,-240.0,0.00029897,2]
[426816321,1782881443000,-165.06341366,0.00029899,2]
[426816325,1782881443000,-180.2,0.0002994,14]
[426816326,1782881443000,-165.06341365,0.0002997,2]
[426816327,1782881443000,-300.17234762,0.00029998,7]
[426816317,1782881443000,-650.0,0.00029897,2]
[426816339,1782881444000,-500.0,0.00029999,7]
[426816343,1782881444000,-451.15783724,0.00029999,7]
[426816342,1782881444000,-500.0,0.00029999,7]
[426816338,1782881444000,-500.0,0.00029999,7]
[426816337,1782881444000,-500.0,0.00029999,7]
[426816336,1782881444000,-500.0,0.00029999,7]
[426816340,1782881444000,-500.0,0.00029999,7]
[426816344,1782881444000,-48.84216276,0.00029999,7]
[426816334,1782881444000,-500.0,0.00029999,7]
[426816341,1782881444000,-500.0,0.00029999,7]
[426816333,1782881444000,-500.0,0.00029999,7]
[426816331,1782881444000,-1653.29,0.00029999,7]
[426816332,1782881444000,-1653.29,0.00029999,7]
[426816330,1782881444000,-1331.65319434,0.00029999,7]
[426816328,1782881444000,-306.16001651,0.00029998,7]
[426816329,1782881444000,-688.27,0.00029998,2]
[426816335,1782881444000,-500.0,0.00029999,7]
[426816346,1782881444000,-500.0,0.00029999,7]
[426816349,1782881444000,-580.07,0.00029999,7]
[426816345,1782881444000,-500.0,0.00029999,7]
[426816362,1782881444000,-157.9,0.00029999,7]
[426816363,1782881444000,-281.101611,0.00029999,7]
[426816365,1782881444000,-1140.64912569,0.00029999,2]
[426816360,1782881444000,-500.0,0.00029999,7]
[426816361,1782881444000,-500.0,0.00029999,7]
[426816357,1782881444000,-500.0,0.00029999,7]
[426816358,1782881444000,-500.0,0.00029999,7]
[426816359,1782881444000,-500.0,0.00029999,7]
[426816364,1782881444000,-151.0,0.00029999,7]
[426816352,1782881444000,-541.06,0.00029999,7]
[426816351,1782881444000,-580.07,0.00029999,7]
[426816353,1782881444000,-541.06,0.00029999,7]
[426816350,1782881444000,-580.07,0.00029999,7]
[426816354,1782881444000,-541.06,0.00029999,7]
[426816347,1782881444000,-500.0,0.00029999,7]
[426816356,1782881444000,-500.0,0.00029999,7]
[426816348,1782881444000,-500.0,0.00029999,7]
[426816355,1782881444000,-500.0,0.00029999,7]
[426816367,1782881447000,-3848.23550282,0.00029699,2]
[426816378,1782882055000,179.3,0.00015,7]
[426816380,1782882109000,-233.78436287,0.00020861,2]
[426816385,1782882546000,-5000.0,0.00018474,2]
[426816386,1782882546000,-148.18631985,0.00018661,2]
[426816384,1782882546000,-151.0,0.0001792,2]
[426816383,1782882546000,-156.354,0.0001782,2]
[426816480,1782882638000,-2420.02224527,0.00018289,2]
[426816482,1782882638000,-556.37116805,0.00018474,2]
[426816481,1782882638000,-2579.97775473,0.00018289,2]
[426816486,1782882638000,-1705.09,0.00022,12]
[426816487,1782882638000,-199.67810158,0.00022216,5]
[426816483,1782882638000,-1346.56840784,0.00018474,2]
[426816488,1782882638000,-2857.59210556,0.00024435,2]
[426816485,1782882638000,-230.22627271,0.000215,2]
[426816489,1782882638000,-4784.68557449,0.00024435,2]
[426816484,1782882638000,-2.81368015,0.00018661,2]
[426816528,1782883750000,-185.89531009,0.00019011,2]
[426816527,1782883750000,-151.0,0.00018441,2]
[426816553,1782883832000,-1491.32363274,0.00018821,2]
[426816560,1782883832000,-729.0510249,0.00018821,2]
[426816658,1782883840000,-1902.94802582,0.00018821,2]
[426816669,1782883841000,-2458.303048,0.00025531,2]
[426816686,1782883841000,-151.0,0.00028008,7]
[426816684,1782883841000,-152.75,0.00027881,7]
[426816675,1782883841000,-1585.242922,0.00026942,2]
[426816674,1782883841000,-1585.242922,0.00026942,2]
[426816673,1782883841000,-280.47228586,0.00026941,2]
[426816671,1782883841000,-589.393187,0.00025703,2]
[426816685,1782883841000,-587.0,0.00028,2]
[426816666,1782883841000,-500.0,0.0002553,2]
[426816677,1782883841000,-1585.242922,0.00026942,2]
[426816668,1782883841000,-2120.6703494,0.00025531,2]
[426816667,1782883841000,-500.0,0.0002553,2]
[426816665,1782883841000,-500.0,0.0002553,2]
[426816661,1782883841000,-500.0,0.00024434,2]
[426816672,1782883841000,-290.69659237,0.00026703,2]
[426816663,1782883841000,-250.0,0.00024545,2]
[426816664,1782883841000,-1000.0,0.00025,15]
[426816660,1782883841000,-289.08750412,0.00021247,7]
[426816659,1782883841000,-876.67731654,0.00018821,2]
[426816670,1782883841000,-588.5351189,0.00025634,2]
[426816681,1782883841000,-182.336608,0.00027002,2]
[426816662,1782883841000,-1617.72231995,0.00024435,2]
[426816678,1782883841000,-151.0,0.00026942,2]
[426816702,1782883841000,-209.53522254,0.00028752,7]
[426816700,1782883841000,-151.0,0.0002875,7]
[426816701,1782883841000,-151.0,0.0002875,7]
[426816699,1782883841000,-151.0,0.00028748,7]
[426816694,1782883841000,-1585.242922,0.00028748,2]
[426816688,1782883841000,-285.88545094,0.00028108,2]
[426816693,1782883841000,-207.90791822,0.00028711,7]
[426816690,1782883841000,-186.11812073,0.00028108,2]
[426816692,1782883841000,-193.62,0.00028676,2]
[426816696,1782883841000,-1585.242922,0.00028748,2]
[426816695,1782883841000,-1585.242922,0.00028748,2]
[426816691,1782883841000,-334.6776047,0.00028108,2]
[426816697,1782883841000,-1585.242922,0.00028748,2]
[426816689,1782883841000,-446.24932107,0.00028108,2]
[426816687,1782883841000,-250.14976957,0.00028108,2]
[426816683,1782883841000,-155.38,0.00027427,2]
[426816679,1782883841000,-265.25547007,0.00026942,2]
[426816682,1782883841000,-150.31016432,0.00027397,7]
[426816680,1782883841000,-292.053454,0.00026942,2]
[426816698,1782883841000,-500.0,0.00028748,2]
[426816676,1782883841000,-1585.242922,0.00026942,2]
[426816852,1782883847000,-1184.72,0.00026672,2]
[426816863,1782883948000,-500.0,0.00024999,2]
[426816865,1782883965000,-432.85818065,0.00024999,2]
[426816873,1782884130000,197.0,0.00025183,120]
[426816931,1782885033000,-345.34415702,0.00021719,2]
[426816930,1782885033000,-190.68850634,0.00021502,2]
[426816932,1782885033000,-3839.05734935,0.00021938,2]
[426816967,1782885038000,-180.30896282,0.00026939,2]
[426816966,1782885038000,-414.820014,0.00026217,2]
[426816965,1782885038000,-109.09104518,0.00025997,2]
[426816963,1782885038000,-321.0,0.00025,2]
[426816964,1782885038000,-76.25039637,0.00025997,2]
[426816962,1782885038000,-1160.94265065,0.00021938,2]
[426817095,1782885437000,172.21980225,0.00029222,30]
[426817098,1782885710000,-918.34200548,0.0002079,2]
[426817099,1782885728000,-3321.00225134,0.00021,2]
[426817101,1782885744000,-158.58875083,0.000215,2]
[426817106,1782886043000,1000002.09999901,0.0003013,30]
[426817223,1782886239000,-211.43676236,0.00025602,2]
[426817216,1782886239000,-344.62393812,0.00024912,2]
[426817215,1782886239000,-301.54594585,0.00024912,2]
[426817217,1782886239000,-537.93642841,0.00024912,2]
[426817220,1782886239000,-2882.4980983,0.00025532,2]
[426817219,1782886239000,-174.634065,0.00025185,2]
[426817221,1782886239000,-184.38,0.00025591,2]
[426817233,1782886239000,-500.0,0.000257,2]
[426817222,1782886239000,-6667.99068709,0.000256,2]
[426817218,1782886239000,-3885.04635596,0.00025,2]
[426817225,1782886239000,-500.0,0.000257,2]
[426817226,1782886239000,-166.45951556,0.000257,2]
[426817228,1782886239000,-500.0,0.000257,2]
[426817227,1782886239000,-500.0,0.000257,2]
[426817229,1782886239000,-500.0,0.000257,2]
[426817230,1782886239000,-500.0,0.000257,2]
[426817224,1782886239000,-196.3306001,0.000257,2]
[426817232,1782886239000,-500.0,0.000257,2]
[426817231,1782886239000,-500.0,0.000257,2]
[426817234,1782886239000,-500.0,0.000257,2]
[426817235,1782886239000,-168.20347197,0.000257,2]
[426817247,1782886241000,-103.11147197,0.000257,2]
[426817245,1782886241000,-331.79652803,0.000257,2]
[426817246,1782886241000,-500.0,0.000257,2]
[426817624,1782887212000,-151.0,0.00021808,2]
[426817625,1782887212000,-88.7593627,0.00022483,2]
[426817670,1782887432000,-274.97517806,0.00021692,2]
[426817669,1782887432000,-404.17939725,0.00021692,2]
[426817668,1782887432000,-185.89531009,0.00021475,2]
[426817728,1782887439000,-951.145753,0.00026209,2]
[426817722,1782887439000,-951.145753,0.0002612,2]
[426817725,1782887439000,-500.0,0.00026208,2]
[426817723,1782887439000,-951.145753,0.0002612,2]
[426817727,1782887439000,-951.145753,0.00026209,2]
[426817730,1782887439000,-951.145753,0.00026209,2]
[426817724,1782887439000,-951.145753,0.0002612,2]
[426817726,1782887439000,-951.145753,0.00026209,2]
[426817729,1782887439000,-951.145753,0.00026209,2]
[426817739,1782887439000,-951.145753,0.00026209,2]
[426817731,1782887439000,-951.145753,0.00026209,2]
[426817733,1782887439000,-951.145753,0.00026209,2]
[426817734,1782887439000,-951.145753,0.00026209,2]
[426817737,1782887439000,-951.145753,0.00026209,2]
[426817738,1782887439000,-951.145753,0.00026209,2]
[426817735,1782887439000,-951.145753,0.00026209,2]
[426817736,1782887439000,-951.145753,0.00026209,2]
[426817720,1782887439000,-567.7749644,0.00026027,2]
[426817742,1782887439000,-183.66,0.0002621,2]
[426817732,1782887439000,-951.145753,0.00026209,2]
[426817721,1782887439000,-951.145753,0.0002612,2]
[426817712,1782887439000,-510.01250097,0.00024986,2]
[426817717,1782887439000,-500.0,0.00026027,2]
[426817743,1782887439000,-163.52932416,0.0002621,12]
[426817698,1782887439000,-355.92359984,0.00021692,2]
[426817699,1782887439000,-369.89413846,0.00021749,2]
[426817700,1782887439000,-1026.2349548,0.00022956,2]
[426817702,1782887439000,-367.99650922,0.00023736,2]
[426817703,1782887439000,-420.56743911,0.00023736,2]
[426817701,1782887439000,-3644.9765362,0.00023575,2]
[426817704,1782887439000,-656.47948699,0.00023736,2]
[426817707,1782887439000,-590.385001,0.00024738,2]
[426817711,1782887439000,-286.8820318,0.00024986,2]
[426817705,1782887439000,-179.357035,0.00024356,2]
[426817710,1782887439000,-159.37890655,0.00024986,2]
[426817706,1782887439000,-1024.2929366,0.00024365,2]
[426817709,1782887439000,-1096.55671656,0.00024984,2]
[426817708,1782887439000,-300.0,0.00024984,2]
[426817713,1782887439000,-796.09763824,0.00024986,2]
[426817714,1782887439000,-6169.9152235,0.00025229,2]
[426817715,1782887439000,-300.17234762,0.00025699,2]
[426817716,1782887439000,-500.0,0.00026027,2]
[426817718,1782887439000,-500.0,0.00026027,2]
[426817741,1782887439000,-951.145756,0.00026209,2]
[426817719,1782887439000,-500.0,0.00026027,2]
[426817745,1782887439000,-151.0,0.00026221,2]
[426817768,1782887439000,-250.62631228,0.00028376,2]
[426817766,1782887439000,-160.0,0.00028,2]
[426817770,1782887439000,-183.66,0.0002849,2]
[426817772,1782887439000,-1261.99,0.00028498,2]
[426817775,1782887439000,-500.0,0.00028499,2]
[426817773,1782887439000,-589.48403098,0.00028498,7]
[426817776,1782887439000,-16716.62866875,0.000285,2]
[426817771,1782887439000,-294.66140695,0.00028498,7]
[426817774,1782887439000,-500.0,0.00028498,2]
[426817781,1782887439000,-323.41,0.0002883,2]
[426817780,1782887439000,-500.0,0.0002883,2]
[426817778,1782887439000,-1253.237876,0.00028764,2]
[426817782,1782887439000,-452.685,0.0002883,2]
[426817779,1782887439000,-220.19,0.0002882,2]
[426817783,1782887439000,-152.04,0.00028953,15]
[426817784,1782887439000,-1000.0,0.00028972,2]
[426817785,1782887439000,-1000.0,0.00028972,2]
[426817786,1782887439000,-1000.0,0.00028972,2]
[426817740,1782887439000,-951.145753,0.00026209,2]
[426817765,1782887439000,-282.45315928,0.00027753,2]
[426817787,1782887439000,-182.81427014,0.00028972,2]
[426817777,1782887439000,-814.52218396,0.00028724,2]
[426817769,1782887439000,-814.52218398,0.00028398,2]
[426817767,1782887439000,-601.0,0.00028,2]
[426817746,1782887439000,-151.0,0.00026221,2]
[426817744,1782887439000,-151.0,0.00026221,2]
[426817747,1782887439000,-151.0,0.00026221,2]
[426817751,1782887439000,-500.0,0.000263,2]
[426817750,1782887439000,-261.974476,0.00026221,2]
[426817748,1782887439000,-151.0,0.00026221,2]
[426817752,1782887439000,-500.0,0.00026913,2]
[426817754,1782887439000,-500.0,0.00026913,2]
[426817755,1782887439000,-505.21058429,0.00026913,2]
[426817749,1782887439000,-151.0,0.00026221,2]
[426817753,1782887439000,-1261.99,0.00026913,2]
[426817756,1782887439000,-500.0,0.00026913,2]
[426817757,1782887439000,-500.0,0.00026913,2]
[426817759,1782887439000,-500.0,0.00026913,2]
[426817764,1782887439000,-429.62700962,0.00027685,2]
[426817760,1782887439000,-151.0,0.00026914,2]
[426817763,1782887439000,-1253.237876,0.00027602,2]
[426817761,1782887439000,-151.0,0.00026914,2]
[426817762,1782887439000,-155.04404453,0.00027397,2]
[426817758,1782887439000,-503.05444609,0.00026913,2]
[426817823,1782887440000,-1261.99,0.00029699,2]
[426817822,1782887440000,-1261.99,0.00029699,2]
[426817824,1782887440000,-1261.99,0.00029699,2]
[426817821,1782887440000,-1261.99,0.00029699,2]
[426817819,1782887440000,-1261.99,0.00029699,2]
[426817817,1782887440000,-1261.99,0.00029699,2]
[426817818,1782887440000,-1261.99,0.00029699,2]
[426817814,1782887440000,-500.0,0.00029698,2]
[426817820,1782887440000,-1261.99,0.00029699,2]
[426817825,1782887440000,-1261.99,0.00029699,2]
[426817836,1782887440000,-401.80540211,0.00029699,2]
[426817826,1782887440000,-1261.99,0.00029699,2]
[426817828,1782887440000,-1261.99,0.00029699,2]
[426817829,1782887440000,-1261.99,0.00029699,2]
[426817830,1782887440000,-1261.99,0.00029699,2]
[426817831,1782887440000,-1261.99,0.00029699,2]
[426817832,1782887440000,-1261.99,0.00029699,2]
[426817833,1782887440000,-1261.99,0.00029699,2]
[426817835,1782887440000,-500.0,0.00029699,2]
[426817834,1782887440000,-1262.07055892,0.00029699,2]
[426817837,1782887440000,-300.0,0.00029699,2]
[426817812,1782887440000,-1261.99,0.00029698,2]
[426817827,1782887440000,-1261.99,0.00029699,2]
[426817816,1782887440000,-1261.99,0.00029699,2]
[426817791,1782887440000,-814.52218396,0.00029049,2]
[426817813,1782887440000,-500.0,0.00029698,2]
[426817790,1782887440000,-152.04,0.00029003,15]
[426817789,1782887440000,-601.0,0.00029,2]
[426817788,1782887440000,-359.63679836,0.00029,2]
[426817838,1782887440000,-500.0,0.00029699,2]
[426817793,1782887440000,-152.05,0.00029103,15]
[426817794,1782887440000,-1261.99,0.00029159,2]